[Event "*** Titled Tuesday Blitz"]
[Site "Chess.com"]
[Date "2020.04.28"]
[Round "9"]
[White "Kezin_Roman"]
[Black "harvsp123"]
[Result "1-0"]
[WhiteElo "2714"]
[BlackElo "2540"]
[TimeControl "180+1"]
[EndTime "11:44:56 PDT"]
[Termination "Kezin_Roman won by resignation"]

1. h4 {[%clk 0:03:00.9]} 1... e5 {[%clk 0:02:53.8]} 2. h5 {[%clk 0:03:01.8]}
2... d5 {[%clk 0:02:39.3]} 3. c3 {[%clk 0:03:02.2]} 3... c5 {[%clk 0:02:37.7]}
4. d4 {[%clk 0:03:02.5]} 4... cxd4 {[%clk 0:02:37.6]} 5. cxd4 {[%clk 0:03:03.4]}
5... e4 {[%clk 0:02:24.3]} 6. Nc3 {[%clk 0:03:02.2]} 6... Nc6 {[%clk 0:02:24.3]}
7. Bf4 {[%clk 0:02:57.9]} 7... f5 {[%clk 0:02:15.9]} 8. e3 {[%clk 0:02:54.7]}
8... Nf6 {[%clk 0:02:16.3]} 9. h6 {[%clk 0:02:54.3]} 9... g6 {[%clk 0:02:15.3]}
10. Qb3 {[%clk 0:02:50.1]} 10... Bd6 {[%clk 0:02:10.4]} 11. Bg5 {[%clk
0:02:48.5]} 11... Na5 {[%clk 0:01:57.4]} 12. Qa4+ {[%clk 0:02:48.2]} 12... Bd7
{[%clk 0:01:50.6]} 13. Bb5 {[%clk 0:02:48.5]} 13... Bxb5 {[%clk 0:01:20]} 14.
Qxb5+ {[%clk 0:02:49.4]} 14... Nc6 {[%clk 0:01:03.5]} 15. Qxb7 {[%clk
0:02:49.3]} 15... Nb4 {[%clk 0:01:00.1]} 16. Bxf6 {[%clk 0:02:48.6]} 16... Qxf6
{[%clk 0:00:55.4]} 17. Qxa8+ {[%clk 0:02:48.6]} 17... Kd7 {[%clk 0:00:55]} 18.
Qb7+ {[%clk 0:02:48.8]} 18... Ke6 {[%clk 0:00:54.2]} 19. Kf1 {[%clk 0:02:22.3]}
19... Rb8 {[%clk 0:00:48.3]} 20. Qg7 {[%clk 0:02:19.7]} 20... Qg5 {[%clk
0:00:35.6]} 21. Nh3 {[%clk 0:01:57.4]} 21... Qg4 {[%clk 0:00:32.6]} 22. Ne2
{[%clk 0:01:57.3]} 22... Nd3 {[%clk 0:00:23.9]} 23. b3 {[%clk 0:01:54.9]} 23...
Rc8 {[%clk 0:00:21.1]} 24. Nhf4+ {[%clk 0:01:31.5]} 24... Bxf4 {[%clk
0:00:19.5]} 25. Nxf4+ {[%clk 0:01:31.9]} 25... Nxf4 {[%clk 0:00:19.9]} 26. Qe5+
{[%clk 0:01:29]} 26... Kf7 {[%clk 0:00:19.5]} 27. Qxf4 {[%clk 0:01:28.4]} 27...
Qxf4 {[%clk 0:00:18.4]} 28. exf4 {[%clk 0:01:29.3]} 28... Rc2 {[%clk 0:00:18.6]}
29. Rh3 {[%clk 0:01:29.5]} 29... a5 {[%clk 0:00:17.5]} 30. a3 {[%clk 0:01:28.1]}
30... Rb2 {[%clk 0:00:17.3]} 31. Rc3 {[%clk 0:01:25.9]} 31... Ke6 {[%clk
0:00:17.7]} 32. b4 {[%clk 0:01:24.3]} 32... a4 {[%clk 0:00:17]} 33. Rac1 {[%clk
0:01:21.1]} 1-0

[Event "*** Titled Tuesday Blitz"]
[Site "Chess.com"]
[Date "2020.04.28"]
[Round "9"]
[White "Charlottemillard17"]
[Black "chessuriel"]
[Result "0-1"]
[WhiteElo "1409"]
[BlackElo "2208"]
[TimeControl "180+1"]
[EndTime "11:44:56 PDT"]
[Termination "chessuriel won on time"]

1. e4 {[%clk 0:03:00.9]} 1... c5 {[%clk 0:02:59.4]} 2. c3 {[%clk 0:03:00.3]}
2... e6 {[%clk 0:03:00.3]} 3. d4 {[%clk 0:03:00.1]} 3... d5 {[%clk 0:02:58.1]}
4. e5 {[%clk 0:02:58.8]} 4... Qb6 {[%clk 0:02:53.3]} 5. Nf3 {[%clk 0:02:44.3]}
5... Bd7 {[%clk 0:02:51.5]} 6. Qc2 {[%clk 0:02:36.9]} 6... Ne7 {[%clk
0:02:48.6]} 7. Be3 {[%clk 0:02:33.2]} 7... Nf5 {[%clk 0:02:45.4]} 8. Be2 {[%clk
0:02:11.1]} 8... Nxe3 {[%clk 0:02:42.1]} 9. fxe3 {[%clk 0:02:09.5]} 9... Bb5
{[%clk 0:02:43]} 10. O-O {[%clk 0:02:04.4]} 10... Nc6 {[%clk 0:02:35]} 11. Na3
{[%clk 0:01:42.7]} 11... Bxe2 {[%clk 0:02:33.6]} 12. Qxe2 {[%clk 0:01:41]} 12...
Be7 {[%clk 0:02:33.9]} 13. Qf2 {[%clk 0:01:13]} 13... O-O {[%clk 0:02:30.9]} 14.
Rab1 {[%clk 0:01:09.4]} 14... Rac8 {[%clk 0:02:27.6]} 15. Qg3 {[%clk 0:01:03.7]}
15... Na5 {[%clk 0:02:19.8]} 16. h4 {[%clk 0:00:59.5]} 16... Qa6 {[%clk
0:02:07.9]} 17. h5 {[%clk 0:00:55.3]} 17... h6 {[%clk 0:02:04.8]} 18. Nh2 {[%clk
0:00:50.8]} 18... Qd3 {[%clk 0:01:56.7]} 19. Ng4 {[%clk 0:00:45.9]} 19... Bg5
{[%clk 0:01:55.5]} 20. Rf3 {[%clk 0:00:22.4]} 20... Nc4 {[%clk 0:01:51.7]} 21.
e4 {[%clk 0:00:20.3]} 21... Qxe4 {[%clk 0:01:46]} 22. Nf6+ {[%clk 0:00:16.9]}
22... gxf6 {[%clk 0:01:43.7]} 23. exf6 {[%clk 0:00:16.9]} 23... Nxa3 {[%clk
0:01:41.3]} 24. Re1 {[%clk 0:00:14.5]} 24... Qh4 {[%clk 0:01:34.9]} 25. Qxh4
{[%clk 0:00:11.6]} 25... Bxh4 {[%clk 0:01:34.1]} 26. Ree3 {[%clk 0:00:10]} 26...
Nc4 {[%clk 0:01:33]} 27. Rd3 {[%clk 0:00:08.3]} 27... cxd4 {[%clk 0:01:31.9]}
28. Rxd4 {[%clk 0:00:05.1]} 28... Bg5 {[%clk 0:01:31.2]} 29. Rg3 {[%clk
0:00:03.4]} 29... Kh8 {[%clk 0:01:30.3]} 30. b3 {[%clk 0:00:01.1]} 30... Be3+
{[%clk 0:01:28.6]} 0-1

[Event "*** Titled Tuesday Blitz"]
[Site "Chess.com"]
[Date "2020.04.28"]
[Round "9"]
[White "Baby_Legs"]
[Black "MartinMatthiesen"]
[Result "1-0"]
[WhiteElo "2691"]
[BlackElo "2471"]
[TimeControl "180+1"]
[EndTime "11:45:01 PDT"]
[Termination "Baby_Legs won on time"]

1. c4 {[%clk 0:03:00.9]} 1... c6 {[%clk 0:02:55.8]} 2. Nf3 {[%clk 0:02:58.4]}
2... d5 {[%clk 0:02:55.8]} 3. e3 {[%clk 0:02:59.3]} 3... Nf6 {[%clk 0:02:55.3]}
4. Nc3 {[%clk 0:02:58.4]} 4... g6 {[%clk 0:02:47.4]} 5. d4 {[%clk 0:02:57.3]}
5... Bg7 {[%clk 0:02:47.1]} 6. Be2 {[%clk 0:02:58]} 6... O-O {[%clk 0:02:46.6]}
7. O-O {[%clk 0:02:58.5]} 7... Bg4 {[%clk 0:02:44.1]} 8. cxd5 {[%clk 0:02:49.7]}
8... cxd5 {[%clk 0:02:43.4]} 9. Qb3 {[%clk 0:02:49.8]} 9... Bc8 {[%clk
0:02:21.8]} 10. Ne5 {[%clk 0:02:49.6]} 10... Nc6 {[%clk 0:02:20.2]} 11. Nxc6
{[%clk 0:02:47.9]} 11... bxc6 {[%clk 0:02:19.9]} 12. Bd2 {[%clk 0:02:45.4]}
12... Qc7 {[%clk 0:02:01.8]} 13. Rfc1 {[%clk 0:02:38.4]} 13... Rb8 {[%clk
0:01:44.9]} 14. Qa3 {[%clk 0:02:38.4]} 14... e5 {[%clk 0:01:39.4]} 15. h3 {[%clk
0:02:05.6]} 15... exd4 {[%clk 0:01:05.3]} 16. exd4 {[%clk 0:02:06.5]} 16... Bf5
{[%clk 0:00:37.9]} 17. Be3 {[%clk 0:01:54.2]} 17... Rfe8 {[%clk 0:00:36.2]} 18.
b3 {[%clk 0:01:46.7]} 18... Bxh3 {[%clk 0:00:19.6]} 19. Nb5 {[%clk 0:01:39.3]}
19... Qd7 {[%clk 0:00:16.9]} 20. Nc3 {[%clk 0:01:15.1]} 20... Ng4 {[%clk
0:00:16.4]} 21. Bf4 {[%clk 0:01:12.9]} 21... Bxd4 {[%clk 0:00:10.1]} 22. Bxb8
{[%clk 0:01:12.9]} 22... Nxf2 {[%clk 0:00:08]} 23. Bxa7 {[%clk 0:01:10.6]} 23...
Bxa7 {[%clk 0:00:06.7]} 24. Kf1 {[%clk 0:01:08.9]} 24... Ng4 {[%clk 0:00:06]}
25. gxh3 {[%clk 0:01:08.4]} 25... Ne3+ {[%clk 0:00:05.8]} 26. Ke1 {[%clk
0:01:08.5]} 26... Ng2+ {[%clk 0:00:05.7]} 27. Kd1 {[%clk 0:01:08.1]} 1-0

[Event "*** Titled Tuesday Blitz"]
[Site "Chess.com"]
[Date "2020.04.28"]
[Round "9"]
[White "adricalderon8"]
[Black "cassoulet"]
[Result "1-0"]
[WhiteElo "2431"]
[BlackElo "2572"]
[TimeControl "180+1"]
[EndTime "11:45:01 PDT"]
[Termination "adricalderon8 won by resignation"]

1. e4 {[%clk 0:03:00.9]} 1... e6 {[%clk 0:02:58.6]} 2. d4 {[%clk 0:03:00]} 2...
d5 {[%clk 0:02:58.9]} 3. Nc3 {[%clk 0:03:00.6]} 3... dxe4 {[%clk 0:02:58]} 4.
Nxe4 {[%clk 0:03:00.3]} 4... Nd7 {[%clk 0:02:58.5]} 5. Nf3 {[%clk 0:02:59.8]}
5... Ngf6 {[%clk 0:02:59.1]} 6. Bd3 {[%clk 0:02:59.6]} 6... Be7 {[%clk
0:02:57.4]} 7. Qe2 {[%clk 0:02:59.2]} 7... O-O {[%clk 0:02:57.3]} 8. O-O {[%clk
0:02:58.8]} 8... Nxe4 {[%clk 0:02:56.5]} 9. Bxe4 {[%clk 0:02:58.7]} 9... c5
{[%clk 0:02:56.3]} 10. Rd1 {[%clk 0:02:52.8]} 10... Qc7 {[%clk 0:02:54.2]} 11.
Bg5 {[%clk 0:02:11.6]} 11... Nf6 {[%clk 0:02:49.3]} 12. Bd3 {[%clk 0:02:07.3]}
12... h6 {[%clk 0:02:36.6]} 13. Bh4 {[%clk 0:02:06.2]} 13... Nh5 {[%clk
0:02:15.1]} 14. Bxe7 {[%clk 0:02:04]} 14... Qxe7 {[%clk 0:02:16]} 15. Qe5 {[%clk
0:01:59.8]} 15... Nf6 {[%clk 0:02:06.8]} 16. Qxc5 {[%clk 0:01:55.2]} 16... Qxc5
{[%clk 0:02:03.8]} 17. dxc5 {[%clk 0:01:56.1]} 17... Bd7 {[%clk 0:02:03.9]} 18.
Ne5 {[%clk 0:01:55.5]} 18... Rfd8 {[%clk 0:02:03.3]} 19. Rd2 {[%clk 0:01:45.5]}
19... Be8 {[%clk 0:02:01.7]} 20. Rad1 {[%clk 0:01:44.9]} 20... Rd5 {[%clk
0:02:01.5]} 21. Nc4 {[%clk 0:01:29.4]} 21... Rxc5 {[%clk 0:01:58.7]} 22. Nd6
{[%clk 0:01:29.6]} 22... Bc6 {[%clk 0:01:56.7]} 23. c4 {[%clk 0:01:23.9]} 23...
a6 {[%clk 0:01:46.1]} 24. b4 {[%clk 0:01:23.3]} 24... Rg5 {[%clk 0:01:40.8]} 25.
f4 {[%clk 0:01:21.2]} 25... Rh5 {[%clk 0:01:16]} 26. g3 {[%clk 0:01:17.3]} 26...
Rd8 {[%clk 0:01:09.5]} 27. Be2 {[%clk 0:01:15.4]} 27... Rxd6 {[%clk 0:00:46.3]}
28. Rxd6 {[%clk 0:01:11.5]} 28... Rf5 {[%clk 0:00:43.4]} 29. Rxc6 {[%clk
0:00:58.1]} 29... bxc6 {[%clk 0:00:42.9]} 30. Rd8+ {[%clk 0:00:58.1]} 30... Kh7
{[%clk 0:00:42.3]} 31. Bd3 {[%clk 0:00:58.7]} 31... g5 {[%clk 0:00:38.1]} 32.
Bxf5+ {[%clk 0:00:57]} 32... exf5 {[%clk 0:00:38.4]} 33. Rd6 {[%clk 0:00:56.6]}
33... Ne4 {[%clk 0:00:38]} 34. Rxc6 {[%clk 0:00:56.8]} 34... Nd2 {[%clk
0:00:36.2]} 35. b5 {[%clk 0:00:56.5]} 1-0

[Event "*** Titled Tuesday Blitz"]
[Site "Chess.com"]
[Date "2020.04.28"]
[Round "9"]
[White "Alopekos"]
[Black "ENEASZ"]
[Result "1-0"]
[WhiteElo "2408"]
[BlackElo "2534"]
[TimeControl "180+1"]
[EndTime "11:45:03 PDT"]
[Termination "Alopekos won by resignation"]

1. e4 {[%clk 0:03:00.9]} 1... d6 {[%clk 0:02:59.1]} 2. d4 {[%clk 0:03:00.4]}
2... Nf6 {[%clk 0:02:59.5]} 3. Nc3 {[%clk 0:03:00.9]} 3... e5 {[%clk 0:03:00]}
4. Nf3 {[%clk 0:03:01.5]} 4... Nbd7 {[%clk 0:02:59.8]} 5. Bc4 {[%clk 0:03:02]}
5... Be7 {[%clk 0:03:00.2]} 6. O-O {[%clk 0:03:02.6]} 6... O-O {[%clk
0:03:00.8]} 7. a4 {[%clk 0:03:03.2]} 7... c6 {[%clk 0:03:01.2]} 8. a5 {[%clk
0:03:02.8]} 8... Nxe4 {[%clk 0:02:57.5]} 9. Nxe4 {[%clk 0:02:13.2]} 9... d5
{[%clk 0:02:57.6]} 10. Nxe5 {[%clk 0:01:37.2]} 10... Nxe5 {[%clk 0:02:55.9]} 11.
dxe5 {[%clk 0:01:36.6]} 11... dxc4 {[%clk 0:02:56.7]} 12. Nd6 {[%clk 0:01:18.8]}
12... Be6 {[%clk 0:02:55.5]} 13. Nxb7 {[%clk 0:00:51.2]} 13... Qc7 {[%clk
0:02:55]} 14. Nd6 {[%clk 0:00:51.4]} 14... Rad8 {[%clk 0:02:53.4]} 15. Bf4
{[%clk 0:00:48.8]} 15... f6 {[%clk 0:02:53.6]} 16. Qe2 {[%clk 0:00:11.5]} 16...
fxe5 {[%clk 0:02:41.1]} 17. Qxe5 {[%clk 0:00:12.4]} 17... Rf6 {[%clk 0:02:41.4]}
18. Ne4 {[%clk 0:00:09.4]} 18... Qxe5 {[%clk 0:02:37.2]} 19. Bxe5 {[%clk
0:00:10.3]} 19... Rf5 {[%clk 0:02:37.8]} 20. f4 {[%clk 0:00:10.6]} 20... Bd5
{[%clk 0:02:31.2]} 21. Nc3 {[%clk 0:00:10.8]} 21... Bc5+ {[%clk 0:02:26.7]} 22.
Kh1 {[%clk 0:00:11.3]} 22... Rdf8 {[%clk 0:02:27.4]} 23. Rad1 {[%clk 0:00:10.9]}
23... g5 {[%clk 0:02:26.2]} 24. Nxd5 {[%clk 0:00:10.6]} 24... cxd5 {[%clk
0:02:25.2]} 25. Rxd5 {[%clk 0:00:11.5]} 25... Be3 {[%clk 0:02:22.6]} 26. g4
{[%clk 0:00:08.7]} 26... R5f7 {[%clk 0:02:11]} 27. Bd6 {[%clk 0:00:08.9]} 27...
Rd8 {[%clk 0:02:07.2]} 28. Rxg5+ {[%clk 0:00:08.5]} 28... Rg7 {[%clk 0:02:05.9]}
29. Rxg7+ {[%clk 0:00:08.4]} 29... Kxg7 {[%clk 0:02:06.8]} 30. Be5+ {[%clk
0:00:08.7]} 30... Kf7 {[%clk 0:02:07.4]} 31. Bc3 {[%clk 0:00:07]} 31... Bc5
{[%clk 0:02:00.5]} 32. Kg2 {[%clk 0:00:07]} 32... Rg8 {[%clk 0:01:58.8]} 33. Kf3
{[%clk 0:00:06.7]} 33... Ke6 {[%clk 0:01:59]} 34. Re1+ {[%clk 0:00:06.1]} 34...
Kd5 {[%clk 0:01:59.5]} 35. Re5+ {[%clk 0:00:06.1]} 35... Kc6 {[%clk 0:02:00.2]}
36. Rh5 {[%clk 0:00:06.1]} 36... Re8 {[%clk 0:02:00.4]} 37. Rh6+ {[%clk
0:00:06]} 37... Kb5 {[%clk 0:02:00.3]} 38. g5 {[%clk 0:00:04.2]} 38... Re3+
{[%clk 0:01:59.5]} 39. Kg4 {[%clk 0:00:04.6]} 39... Re2 {[%clk 0:02:00.2]} 40.
Rxh7 {[%clk 0:00:05.1]} 40... Rxc2 {[%clk 0:02:00.6]} 41. g6 {[%clk 0:00:05.4]}
41... Bd6 {[%clk 0:01:40.5]} 42. g7 {[%clk 0:00:05.6]} 42... Rg2+ {[%clk
0:01:40.6]} 43. Kf3 {[%clk 0:00:05]} 43... Kc5 {[%clk 0:01:41.5]} 1-0

[Event "*** Titled Tuesday Blitz"]
[Site "Chess.com"]
[Date "2020.04.28"]
[Round "9"]
[White "Jbd735"]
[Black "yamalchess"]
[Result "1-0"]
[WhiteElo "2430"]
[BlackElo "2564"]
[TimeControl "180+1"]
[EndTime "11:45:05 PDT"]
[Termination "Jbd735 won on time"]

1. e4 {[%clk 0:03:00.9]} 1... e5 {[%clk 0:01:48.9]} 2. Nf3 {[%clk 0:02:56.3]}
2... Nc6 {[%clk 0:01:47.8]} 3. Bb5 {[%clk 0:02:56.1]} 3... a6 {[%clk 0:01:46.1]}
4. Ba4 {[%clk 0:02:56.2]} 4... Nf6 {[%clk 0:01:45.9]} 5. O-O {[%clk 0:02:56.3]}
5... b5 {[%clk 0:01:45.6]} 6. Bb3 {[%clk 0:02:55.9]} 6... Bb7 {[%clk 0:01:45.8]}
7. d3 {[%clk 0:02:53]} 7... Bd6 {[%clk 0:01:43.4]} 8. c3 {[%clk 0:02:50.8]} 8...
O-O {[%clk 0:01:42.7]} 9. Re1 {[%clk 0:02:46.3]} 9... Na5 {[%clk 0:01:41.7]} 10.
Bc2 {[%clk 0:02:45.7]} 10... c5 {[%clk 0:01:41.8]} 11. Nbd2 {[%clk 0:02:45.3]}
11... Re8 {[%clk 0:01:39.8]} 12. Nf1 {[%clk 0:02:45.1]} 12... Bf8 {[%clk
0:01:39.7]} 13. Ng3 {[%clk 0:02:38.1]} 13... g6 {[%clk 0:01:35.9]} 14. a3 {[%clk
0:02:22.4]} 14... Nc6 {[%clk 0:01:33.7]} 15. Bb3 {[%clk 0:02:20]} 15... d5
{[%clk 0:01:32]} 16. exd5 {[%clk 0:02:15.2]} 16... Nxd5 {[%clk 0:01:28.9]} 17.
Bg5 {[%clk 0:02:12.8]} 17... Qd7 {[%clk 0:01:28.6]} 18. Ne4 {[%clk 0:02:11]}
18... Re6 {[%clk 0:00:36]} 19. Bxd5 {[%clk 0:02:01]} 19... Qxd5 {[%clk
0:00:35.6]} 20. Nf6+ {[%clk 0:02:01.5]} 20... Rxf6 {[%clk 0:00:35.8]} 21. Bxf6
{[%clk 0:02:02.4]} 21... Bd6 {[%clk 0:00:33.2]} 22. Qe2 {[%clk 0:02:00.2]} 22...
Re8 {[%clk 0:00:32.6]} 23. Bg5 {[%clk 0:01:51.9]} 23... Kg7 {[%clk 0:00:31]} 24.
Qe4 {[%clk 0:01:49.4]} 24... Qb3 {[%clk 0:00:29.9]} 25. Qh4 {[%clk 0:01:47.9]}
25... Qxb2 {[%clk 0:00:22.3]} 26. Bf6+ {[%clk 0:01:44.3]} 26... Kg8 {[%clk
0:00:21.5]} 27. Ng5 {[%clk 0:01:40.7]} 27... h5 {[%clk 0:00:18.9]} 28. Ne4
{[%clk 0:01:40.5]} 28... Bf8 {[%clk 0:00:17]} 29. Qg5 {[%clk 0:01:33.9]} 29...
Qc2 {[%clk 0:00:13.2]} 30. Rad1 {[%clk 0:01:30.7]} 30... Na5 {[%clk 0:00:09.1]}
31. Bxe5 {[%clk 0:01:24.9]} 31... Be7 {[%clk 0:00:06.3]} 32. Qh6 {[%clk
0:01:20.3]} 1-0

[Event "*** Titled Tuesday Blitz"]
[Site "Chess.com"]
[Date "2020.04.28"]
[Round "9"]
[White "TregubovP"]
[Black "Mashenka97"]
[Result "1-0"]
[WhiteElo "2503"]
[BlackElo "2347"]
[TimeControl "180+1"]
[EndTime "11:45:07 PDT"]
[Termination "TregubovP won by resignation"]

1. e4 {[%clk 0:03:00.9]} 1... c5 {[%clk 0:02:59.2]} 2. Nf3 {[%clk 0:02:57.6]}
2... d6 {[%clk 0:02:56.8]} 3. c3 {[%clk 0:02:56.6]} 3... Nf6 {[%clk 0:02:55.7]}
4. Be2 {[%clk 0:02:55.2]} 4... Nc6 {[%clk 0:02:54.6]} 5. d4 {[%clk 0:02:50.2]}
5... cxd4 {[%clk 0:02:47]} 6. cxd4 {[%clk 0:02:50.1]} 6... g6 {[%clk 0:02:43.4]}
7. Nc3 {[%clk 0:02:47.9]} 7... Bg7 {[%clk 0:02:41.2]} 8. O-O {[%clk 0:02:48]}
8... O-O {[%clk 0:02:38.4]} 9. h3 {[%clk 0:02:48.2]} 9... e5 {[%clk 0:02:36.2]}
10. d5 {[%clk 0:02:47.3]} 10... Ne7 {[%clk 0:02:34.4]} 11. Nd2 {[%clk
0:02:39.7]} 11... Ne8 {[%clk 0:02:26]} 12. Nc4 {[%clk 0:02:36.8]} 12... f5
{[%clk 0:02:24.5]} 13. b3 {[%clk 0:02:35.8]} 13... a6 {[%clk 0:02:18.3]} 14. a4
{[%clk 0:02:35.7]} 14... Nf6 {[%clk 0:02:15.5]} 15. Ba3 {[%clk 0:02:23.7]} 15...
Ne8 {[%clk 0:02:09.3]} 16. a5 {[%clk 0:02:20.5]} 16... Rb8 {[%clk 0:02:05.7]}
17. Rc1 {[%clk 0:02:16]} 17... Bh6 {[%clk 0:02:01.5]} 18. Rc2 {[%clk 0:02:11.2]}
18... fxe4 {[%clk 0:01:47.4]} 19. Nxe4 {[%clk 0:02:10]} 19... Nf5 {[%clk
0:01:46.8]} 20. Bg4 {[%clk 0:02:03.3]} 20... Nd4 {[%clk 0:01:43]} 21. Rc3 {[%clk
0:01:53.5]} 21... Nb5 {[%clk 0:01:40.5]} 22. Be6+ {[%clk 0:01:17.9]} 22... Bxe6
{[%clk 0:01:37.1]} 23. dxe6 {[%clk 0:01:18.1]} 23... Nxc3 {[%clk 0:01:34.4]} 24.
Nxc3 {[%clk 0:01:18]} 24... Qe7 {[%clk 0:01:31.4]} 25. Qd5 {[%clk 0:01:01.6]}
25... Rf6 {[%clk 0:01:11.1]} 26. Nxe5 {[%clk 0:00:55.5]} 26... Qxe6 {[%clk
0:01:06.9]} 27. Nd7 {[%clk 0:00:55]} 27... Qxd5 {[%clk 0:00:31.3]} 28. Nxd5
{[%clk 0:00:54.7]} 28... Rf5 {[%clk 0:00:24.7]} 29. Ne7+ {[%clk 0:00:53.1]}
29... Kf7 {[%clk 0:00:23.3]} 30. Nxf5 {[%clk 0:00:53.3]} 1-0

[Event "*** Titled Tuesday Blitz"]
[Site "Chess.com"]
[Date "2020.04.28"]
[Round "9"]
[White "LizaSolovyova"]
[Black "Harsha_Bharathakoti"]
[Result "0-1"]
[WhiteElo "2539"]
[BlackElo "2734"]
[TimeControl "180+1"]
[EndTime "11:45:08 PDT"]
[Termination "Harsha_Bharathakoti won by checkmate"]

1. d4 {[%clk 0:03:00.7]} 1... d5 {[%clk 0:02:59.3]} 2. e3 {[%clk 0:03:01.2]}
2... Nf6 {[%clk 0:02:59]} 3. Bd3 {[%clk 0:03:01.6]} 3... g6 {[%clk 0:02:54.8]}
4. f4 {[%clk 0:03:01.9]} 4... Bg7 {[%clk 0:02:54.3]} 5. Nf3 {[%clk 0:03:02.1]}
5... O-O {[%clk 0:02:53.7]} 6. c3 {[%clk 0:03:01.9]} 6... c5 {[%clk 0:02:54.1]}
7. O-O {[%clk 0:03:01.5]} 7... b6 {[%clk 0:02:54.3]} 8. Nbd2 {[%clk 0:03:01.5]}
8... Ba6 {[%clk 0:02:53.5]} 9. Bxa6 {[%clk 0:02:59.9]} 9... Nxa6 {[%clk
0:02:54.4]} 10. Ne5 {[%clk 0:02:59.8]} 10... Nc7 {[%clk 0:02:48.9]} 11. Qf3
{[%clk 0:02:59.6]} 11... Nce8 {[%clk 0:02:43.7]} 12. g4 {[%clk 0:02:58.6]} 12...
Nd6 {[%clk 0:02:43]} 13. g5 {[%clk 0:02:56.9]} 13... Nfe4 {[%clk 0:02:43.1]} 14.
h4 {[%clk 0:02:53]} 14... f6 {[%clk 0:02:38.1]} 15. Nd3 {[%clk 0:02:46.5]} 15...
Rc8 {[%clk 0:02:24.4]} 16. Kg2 {[%clk 0:02:37.4]} 16... Qd7 {[%clk 0:02:23.4]}
17. Rh1 {[%clk 0:02:36.6]} 17... fxg5 {[%clk 0:02:23.6]} 18. hxg5 {[%clk
0:02:35.1]} 18... Nxg5 {[%clk 0:02:22.3]} 19. Qxd5+ {[%clk 0:02:34.8]} 19...
Ngf7 {[%clk 0:02:14.3]} 20. Ne5 {[%clk 0:02:33.5]} 20... Bxe5 {[%clk 0:02:07.4]}
21. dxe5 {[%clk 0:02:33.5]} 21... Qg4+ {[%clk 0:02:07.4]} 22. Kf2 {[%clk
0:02:31.7]} 22... Nf5 {[%clk 0:01:57.4]} 23. Qf3 {[%clk 0:02:20.1]} 23... Nxe5
{[%clk 0:01:52]} 24. Qd5+ {[%clk 0:02:13.1]} 24... Nf7 {[%clk 0:01:50.8]} 25.
Ne4 {[%clk 0:02:13.1]} 25... Rcd8 {[%clk 0:01:45.5]} 26. Qe6 {[%clk 0:01:59.4]}
26... Nxe3 {[%clk 0:01:37.3]} 27. Qxg4 {[%clk 0:01:58.9]} 27... Nxg4+ {[%clk
0:01:37.5]} 28. Kg3 {[%clk 0:01:59.5]} 28... Nf6 {[%clk 0:01:37.2]} 29. Nxf6+
{[%clk 0:01:44.1]} 29... exf6 {[%clk 0:01:38.1]} 30. Be3 {[%clk 0:01:44.6]}
30... Nd6 {[%clk 0:01:36.8]} 31. Bf2 {[%clk 0:01:42.6]} 31... Ne4+ {[%clk
0:01:35.6]} 32. Kf3 {[%clk 0:01:39.5]} 32... f5 {[%clk 0:01:34.9]} 33. Rad1
{[%clk 0:01:38.9]} 33... Nd2+ {[%clk 0:01:31.3]} 34. Kg2 {[%clk 0:01:35.5]}
34... Rfe8 {[%clk 0:01:31.2]} 35. Rhe1 {[%clk 0:01:31.5]} 35... Ne4 {[%clk
0:01:30.2]} 36. Bh4 {[%clk 0:01:30.5]} 36... Rxd1 {[%clk 0:01:23.1]} 37. Rxd1
{[%clk 0:01:31.4]} 37... h6 {[%clk 0:01:22.1]} 38. Rd7 {[%clk 0:01:16.7]} 38...
g5 {[%clk 0:01:22]} 39. fxg5 {[%clk 0:01:14.6]} 39... hxg5 {[%clk 0:01:22.9]}
40. Be1 {[%clk 0:01:14.8]} 40... Nf6 {[%clk 0:01:22.5]} 41. Rd1 {[%clk
0:01:14.4]} 41... Re2+ {[%clk 0:01:20.8]} 42. Kf1 {[%clk 0:01:13.1]} 42... Rc2
{[%clk 0:01:19.6]} 43. c4 {[%clk 0:01:13.7]} 43... Ne4 {[%clk 0:01:18.9]} 44.
Rd8+ {[%clk 0:01:10.9]} 44... Kf7 {[%clk 0:01:19.1]} 45. Rd7+ {[%clk 0:01:11.8]}
45... Ke6 {[%clk 0:01:19.3]} 46. Rxa7 {[%clk 0:01:12.7]} 46... Rxb2 {[%clk
0:01:19.6]} 47. a4 {[%clk 0:01:11.5]} 47... f4 {[%clk 0:01:16.8]} 48. Ra6 {[%clk
0:01:10.7]} 48... Kf5 {[%clk 0:01:16.7]} 49. a5 {[%clk 0:01:10.8]} 49... bxa5
{[%clk 0:01:17]} 50. Bxa5 {[%clk 0:01:10.3]} 50... Kg4 {[%clk 0:01:16]} 51. Bd8
{[%clk 0:01:07.4]} 51... Rb3 {[%clk 0:01:15.1]} 52. Rg6 {[%clk 0:01:06.3]} 52...
Kf3 {[%clk 0:01:14.5]} 53. Bxg5 {[%clk 0:01:05.8]} 53... Rb1# {[%clk 0:01:14.4]}
0-1